fUSD/lending_fUSD_20260107
["ID","MTS","AMOUNT","RATE_DAILY","PERIOD"]
[400708926,1767786642617,-292.06380778,0.00022809,2]
[400708928,1767786642627,-500.0,0.00022935,2]
[400708930,1767786642636,-400.0,0.00023,2]
[400708932,1767786642646,-179.73,0.00023008,2]
[400708934,1767786642657,-309.29654756,0.00023309,2]
[400708936,1767786642666,-332.94,0.00023368,2]
[400708938,1767786642676,-1343.76,0.00023429,2]
[400708940,1767786642688,-150.0,0.00023455,2]
[400708942,1767786642699,-531.4,0.00023599,2]
[400708944,1767786642709,-1863.1579277,0.000237,2]
[400708946,1767786642718,-1466.0463245,0.000237,2]
[400708948,1767786642727,-159.38705849,0.00023713,2]
[400708950,1767786642737,-200.0,0.00023747,2]
[400708953,1767786642747,-16961.71629951,0.00023959,2]
[400708956,1767786642756,-2000.0,0.00024,2]
[400708959,1767786642766,-1032.51,0.00024,7]
[400708961,1767786642776,-500.0,0.00024027,2]
[400708963,1767786642786,-6674.7957,0.000242,2]
[400708965,1767786642795,-332.94,0.00024302,2]
[400708967,1767786642805,-1000.0,0.00024658,2]
[400708969,1767786642815,-3240.0,0.00024658,2]
[400708971,1767786642825,-320.74051982,0.00024678,2]
[400708973,1767786642834,-10098.7894,0.000247,2]
[400708975,1767786642844,-206.81,0.00024717,2]
[400708977,1767786642854,-3664.3752823,0.000248,2]
[400708979,1767786642864,-1307.13264214,0.0002487,2]
[400708981,1767786642873,-72190.4329404,0.000249,2]
[400708983,1767786642883,-400.0,0.000251,7]
[400708985,1767786642892,-332.94,0.00025237,2]
[400708987,1767786642902,-517.11499075,0.00025442,2]
[400708989,1767786642911,-292.06380778,0.00025658,2]
[400708991,1767786642920,-159.38705849,0.00025689,2]
[400708993,1767786642931,-332.60791905,0.00026047,2]
[400708995,1767786642941,-16961.71629951,0.00026387,2]
[400708997,1767786642950,-179.73,0.00026399,2]
[400708999,1767786642961,-1466.0463245,0.00026583,2]
[400709001,1767786642970,-1260.0,0.00026683,3]
[400709003,1767786642980,-1260.0,0.00026683,3]
[400709005,1767786642989,-840.0,0.00026683,3]
[400709007,1767786642999,-987.18375796,0.00026683,3]
[400709010,1767786643010,-158.0,0.00026683,3]
[400709012,1767786643019,-152.0,0.00026683,3]
[400709014,1767786643028,-152.0,0.00026683,3]
[400709016,1767786643038,-152.0,0.00026683,3]
[400709017,1767786643047,-152.0,0.00026683,3]
[400709019,1767786643057,-152.0,0.00026683,3]
[400709022,1767786643068,-152.0,0.00026683,3]
[400709024,1767786643077,-150.0,0.00027369,2]
[400709026,1767786643087,-336.0,0.00027397,4]
[400709028,1767786643096,-439.0,0.00027397,4]
[400709030,1767786643105,-500.0,0.00027397,20]
[400709032,1767786643117,-344.91441206,0.00027416,2]
[400709034,1767786643127,-159.38705849,0.00027665,2]
[400709036,1767786643136,-2000.0,0.000277,2]
[400709038,1767786643146,-1032.51,0.000279,7]
[400709040,1767786643155,-500.0,0.00028033,5]
[400709042,1767786643164,-219.69716765,0.00028033,5]
[400709044,1767786643173,-503.18143071,0.00028033,5]
[400709046,1767786643187,-3493.0,0.000285,3]
[400709048,1767786643196,-292.06380778,0.00028506,2]
[400709050,1767786643206,-1000.0,0.00028581,5]
[400709052,1767786643215,-517.11499075,0.00028646,2]
[400709054,1767786643226,-357.6762453,0.00028785,2]
[400709056,1767786643235,-16961.71629951,0.00028816,2]
[400709058,1767786643244,-500.0,0.00028877,2]
[400709060,1767786643254,-450.04111853,0.00029129,5]
[400709062,1767786643263,-5533.0,0.000293,5]
[400709064,1767786643272,-30000.0,0.00029462,2]
[400709066,1767786643281,-1466.0463245,0.00029466,2]
[400709068,1767786643291,-181.85534,0.0002958,2]
[400709070,1767786643300,-181.85534,0.0002958,2]
[400709072,1767786643310,-1000.0,0.00029597,2]
[400709074,1767786643319,-2396.01,0.000296,14]
[400709076,1767786643329,-300.0,0.00029608,2]
[400709078,1767786643338,-300.0,0.0002961,2]
[400709080,1767786643348,-300.0,0.00029613,2]
[400709082,1767786643357,-300.0,0.00029615,2]
[400709084,1767786643366,-300.0,0.00029616,2]
[400709086,1767786643375,-1000.0,0.0002962,2]
[400709088,1767786643384,-300.0,0.00029626,2]
[400709090,1767786643394,-300.0,0.00029627,2]
[400709093,1767786643403,-300.0,0.00029628,2]
[400709096,1767786643413,-1000.0,0.00029632,2]
[400709099,1767786643422,-1000.0,0.00029632,2]
[400709102,1767786643431,-200.0,0.00029637,2]
[400709105,1767786643442,-159.38705849,0.00029641,2]
[400709108,1767786643451,-300.0,0.00029642,2]
[400709111,1767786643461,-300.0,0.0002965,2]
[400709114,1767786643471,-300.0,0.00029654,2]
[400709116,1767786643480,-300.0,0.00029655,2]
[400709118,1767786643490,-300.0,0.00029657,2]
[400709120,1767786643499,-1000.0,0.00029658,2]
[400709122,1767786643508,-300.0,0.00029664,2]
[400709125,1767786643518,-300.0,0.00029665,2]
[400709127,1767786643539,-300.0,0.00029666,2]
[400709129,1767786643548,-150.0,0.00029672,2]
[400709131,1767786643558,-300.0,0.00029672,2]
[400709133,1767786643567,-300.0,0.00029673,2]
[400709135,1767786643577,-300.0,0.00029677,2]
[400709137,1767786643587,-1000.0,0.00029678,2]
[400709139,1767786643598,-300.0,0.0002968,2]
[400709142,1767786643607,-150.0,0.00029683,2]
[400709144,1767786643617,-300.0,0.00029684,2]
[400709146,1767786643627,-293.14816692,0.00029684,2]
[400709148,1767786643637,-300.0,0.00029685,2]
[400709150,1767786643646,-300.0,0.00029687,2]
[400709152,1767786643656,-300.0,0.0002969,2]
[400709154,1767786643666,-1000.0,0.0002969,2]
[400709156,1767786643675,-300.0,0.00029692,2]
[400709158,1767786643686,-1000.0,0.00029693,2]
[400709160,1767786643696,-300.0,0.00029697,2]
[400709162,1767786643706,-300.0,0.00029698,2]
[400709164,1767786643715,-300.0,0.000297,2]
[400709166,1767786643724,-300.0,0.00029716,2]
[400709168,1767786643734,-300.0,0.00029724,2]
[400709170,1767786643743,-300.0,0.00029727,2]
[400709172,1767786643753,-300.0,0.00029734,2]
[400709174,1767786643763,-852.77776683,0.00029737,2]
[400709176,1767786643772,-300.0,0.00029738,2]
[400709178,1767786643781,-300.0,0.00029739,2]
[400709180,1767786643791,-300.0,0.00029739,2]
[400709182,1767786643800,-300.0,0.00029741,2]
[400709184,1767786643811,-300.0,0.00029749,2]
[400709186,1767786643820,-987.62624517,0.00029754,2]
[400709188,1767786643830,-300.0,0.00029758,2]
[400709190,1767786643839,-300.0,0.0002976,2]
[400709192,1767786643849,-300.0,0.00029774,2]
[400709194,1767786643859,-300.0,0.0002978,2]
[400709197,1767786643868,-1000.0,0.00029781,2]
[400709199,1767786643878,-300.0,0.00029783,2]
[400709201,1767786643892,-1000.0,0.0002979,2]
[400709203,1767786643902,-300.0,0.00029793,2]
[400709204,1767786643913,-1000.0,0.00029795,2]
[400709205,1767786643923,-1000.0,0.00029799,2]
[400709206,1767786643933,-300.0,0.00029805,2]
[400709207,1767786643944,-300.0,0.00029811,2]
[400709208,1767786643954,-300.0,0.00029812,2]
[400709209,1767786643965,-300.0,0.00029813,2]
[400709210,1767786643976,-150.0,0.00029816,2]
[400709211,1767786643987,-300.0,0.00029816,2]
[400709212,1767786643996,-1000.0,0.00029817,2]
[400709213,1767786644006,-239.64,0.00029818,2]
[400709214,1767786644017,-300.0,0.00029819,2]
[400709215,1767786644028,-300.0,0.00029819,2]
[400709217,1767786644038,-300.0,0.00029819,2]
[400709219,1767786644048,-300.0,0.0002982,2]
[400709222,1767786644059,-300.0,0.00029821,2]
[400709224,1767786644069,-300.0,0.00029823,2]
[400709226,1767786644081,-300.0,0.00029828,2]
[400709228,1767786644092,-1000.0,0.00029829,2]
[400709230,1767786644102,-300.0,0.00029833,2]
[400709232,1767786644112,-300.0,0.00029833,2]
[400709234,1767786644122,-300.0,0.00029835,2]
[400709236,1767786644133,-300.0,0.00029835,2]
[400709257,1767786644319,-1000.0,0.00029835,2]
[400709259,1767786644330,-300.0,0.00029836,2]
[400709261,1767786644340,-300.0,0.00029837,2]
[400709263,1767786644349,-300.0,0.00029839,2]
[400709266,1767786644359,-300.0,0.0002984,2]
[400709268,1767786644368,-300.0,0.00029841,2]
[400709270,1767786644377,-300.0,0.00029844,2]
[400709272,1767786644387,-300.0,0.00029845,2]
[400709274,1767786644400,-500.0,0.00029847,2]
[400709276,1767786644409,-300.0,0.00029848,2]
[400709278,1767786644419,-300.0,0.00029866,2]
[400709280,1767786644428,-1000.0,0.00029867,2]
[400709282,1767786644438,-150.0,0.00029869,2]
[400709284,1767786644448,-1000.0,0.0002987,2]
[400709286,1767786644458,-508.0,0.00029877,2]
[400709288,1767786644467,-151.0,0.00029877,2]
[400709290,1767786644476,-151.0,0.00029877,2]
[400709292,1767786644485,-1000.0,0.00029877,2]
[400709294,1767786644494,-200.0,0.000299,2]
[400709296,1767786644503,-164.0,0.000299,3]
[400709298,1767786644512,-154.0,0.000299,3]
[400709300,1767786644522,-152.0,0.000299,3]
[400709302,1767786644531,-151.0,0.000299,3]
[400709304,1767786644540,-164.0,0.000299,3]
[400709306,1767786644549,-154.0,0.000299,3]
[400709308,1767786644558,-151.0,0.000299,3]
[400709310,1767786644567,-152.0,0.000299,3]
[400709312,1767786644577,-1260.0,0.000299,3]
[400709315,1767786644586,-164.0,0.000299,3]
[400709317,1767786644599,-152.0,0.000299,3]
[400709319,1767786644608,-151.0,0.000299,3]
[400709321,1767786644618,-1260.0,0.000299,3]
[400709323,1767786644627,-164.0,0.000299,3]
[400709325,1767786644636,-152.0,0.000299,3]
[400709327,1767786644646,-151.0,0.000299,3]
[400709329,1767786644656,-154.0,0.000299,3]
[400709331,1767786644665,-1260.0,0.000299,3]
[400709333,1767786644675,-152.0,0.000299,3]
[400709335,1767786644686,-151.0,0.000299,3]
[400709337,1767786644696,-158.65429393,0.000299,3]
[400709339,1767786644705,-1260.0,0.000299,3]
[400709341,1767786644715,-154.0,0.000299,3]
[400709343,1767786644725,-152.0,0.000299,3]
[400709345,1767786644735,-151.0,0.000299,3]
[400709347,1767786644744,-1260.0,0.000299,3]
[400709349,1767786644754,-154.0,0.000299,3]
[400709351,1767786644763,-152.0,0.000299,3]
[400709353,1767786644772,-151.0,0.000299,3]
[400709356,1767786644791,-152.0,0.000299,3]
[400709358,1767786644800,-1260.0,0.000299,3]
[400709360,1767786644809,-154.0,0.000299,3]
[400709362,1767786644819,-166.87127614,0.000299,3]
[400709364,1767786644828,-244.87935928,0.000299,3]
[400709366,1767786644838,-152.0,0.000299,3]
[400709368,1767786644847,-1260.0,0.000299,3]
[400709370,1767786644857,-154.0,0.000299,3]
[400709372,1767786644867,-1260.0,0.000299,3]
[400709374,1767786644877,-152.0,0.000299,3]
[400709376,1767786644887,-154.0,0.000299,3]
[400709378,1767786644897,-1260.0,0.000299,3]
[400709380,1767786644906,-165.84142417,0.000299,3]
[400709382,1767786644916,-1260.0,0.000299,3]
[400709384,1767786644925,-154.0,0.000299,3]
[400709386,1767786644935,-1260.0,0.000299,3]
[400709388,1767786644944,-151.0,0.000299,3]
[400709390,1767786644953,-154.0,0.000299,3]
[400709392,1767786644963,-1260.0,0.000299,3]
[400709394,1767786644972,-151.0,0.000299,3]
[400709396,1767786644981,-1260.0,0.000299,3]
[400709398,1767786644993,-154.0,0.000299,3]
[400709400,1767786645003,-151.0,0.000299,3]
[400709402,1767786645012,-154.0,0.000299,3]
[400709404,1767786645022,-1260.0,0.000299,3]
[400709406,1767786645032,-151.0,0.000299,3]
[400709408,1767786645042,-154.0,0.000299,3]
[400709410,1767786645051,-1260.0,0.000299,3]
[400709412,1767786645061,-151.0,0.000299,3]
[400709414,1767786645070,-154.0,0.000299,3]
[400709416,1767786645080,-1260.0,0.000299,3]
[400709418,1767786645090,-151.0,0.000299,3]
[400709420,1767786645100,-1260.0,0.000299,3]
[400709422,1767786645110,-154.0,0.000299,3]
[400709424,1767786645119,-1260.0,0.000299,3]
[400709427,1767786645129,-151.0,0.000299,3]
[400709429,1767786645138,-299.68684401,0.000299,3]
[400709431,1767786645148,-1260.0,0.000299,3]
[400709433,1767786645157,-151.0,0.000299,3]
[400709435,1767786645166,-1260.0,0.000299,3]
[400709437,1767786645175,-151.0,0.000299,3]
[400709439,1767786645187,-1260.0,0.000299,3]
[400709441,1767786645197,-151.0,0.000299,3]
[400709443,1767786645206,-1260.0,0.000299,3]
[400709445,1767786645215,-151.0,0.000299,3]
[400709447,1767786645225,-1260.0,0.000299,3]
[400709449,1767786645235,-151.0,0.000299,3]
[400709451,1767786645245,-1260.0,0.000299,3]
[400709453,1767786645254,-151.0,0.000299,3]
[400709455,1767786645267,-1260.0,0.000299,3]
[400709457,1767786645278,-151.0,0.000299,3]
[400709458,1767786645287,-1260.0,0.000299,3]
[400709461,1767786645299,-151.0,0.000299,3]
[400709463,1767786645309,-555.56608374,0.000299,3]
[400709465,1767786645318,-151.0,0.000299,3]
[400709467,1767786645327,-151.0,0.000299,3]
[400709469,1767786645337,-151.0,0.000299,3]
[400709471,1767786645346,-158.0,0.000299,3]
[400709473,1767786645356,-151.0,0.000299,3]
[400709475,1767786645366,-158.0,0.000299,3]
[400709477,1767786645375,-151.0,0.000299,3]
[400709480,1767786645394,-158.0,0.000299,3]
[400709482,1767786645406,-151.0,0.000299,3]
[400709484,1767786645415,-163.28639204,0.000299,3]
[400709486,1767786645426,-151.0,0.000299,3]
[400709488,1767786645437,-151.0,0.000299,3]
[400709490,1767786645447,-151.0,0.000299,3]
[400709492,1767786645457,-151.0,0.000299,3]
[400709494,1767786645467,-151.0,0.000299,3]
[400709497,1767786645476,-151.0,0.000299,3]
[400709499,1767786645486,-151.0,0.000299,3]
[400709501,1767786645496,-151.0,0.000299,3]
[400709503,1767786645506,-151.0,0.000299,3]
[400709505,1767786645515,-151.0,0.000299,3]
[400709507,1767786645524,-151.0,0.000299,3]
[400709509,1767786645534,-151.0,0.000299,3]
[400709511,1767786645543,-151.0,0.000299,3]
[400709513,1767786645553,-151.0,0.000299,3]
[400709515,1767786645563,-151.0,0.000299,3]
[400709517,1767786645572,-151.0,0.000299,3]
[400709519,1767786645582,-151.0,0.000299,3]
[400709521,1767786645591,-151.0,0.000299,3]
[400709523,1767786645601,-151.0,0.000299,3]
[400709525,1767786645611,-151.0,0.000299,3]
[400709527,1767786645620,-151.0,0.000299,3]
[400709529,1767786645629,-151.0,0.000299,3]
[400709531,1767786645640,-151.0,0.000299,3]
[400709533,1767786645650,-151.0,0.000299,3]
[400709535,1767786645659,-151.0,0.000299,3]
[400709537,1767786645669,-213.71973749,0.000299,3]
[400709539,1767786645679,-151.0,0.000299,3]
[400709541,1767786645689,-154.0,0.000299,3]
[400709543,1767786645698,-151.0,0.000299,3]
[400709545,1767786645708,-151.0,0.000299,3]
[400709547,1767786645721,-151.0,0.000299,3]
[400709550,1767786645732,-155.12653831,0.000299,3]
[400709552,1767786645741,-666.81776856,0.0003,30]
[400709554,1767786645751,-264.82395545,0.0003,30]
[400709556,1767786645761,-485.70359567,0.0003,7]
[400709558,1767786645770,-187.27,0.00030137,2]
[400709560,1767786645780,-370.91026638,0.00030154,2]
[400709562,1767786645789,-1000.0,0.00030164,2]
[400709564,1767786645798,-785.08,0.000302,30]
[400709566,1767786645808,-1032.51,0.000302,7]
[400709568,1767786645817,-1012.37375483,0.00030283,2]
[400709570,1767786645826,-508.0,0.00030772,3]
[400709572,1767786645836,-167.39628109,0.00031087,2]
[400709574,1767786645846,-16961.71629951,0.00031244,2]
[400709576,1767786645855,-785.08,0.000313,30]
[400709578,1767786645864,-292.06380778,0.00031355,2]
[400709580,1767786645874,-1455.0,0.000314,2]
[400709582,1767786645883,-384.63394623,0.00031523,2]
[400709584,1767786645893,-159.38705849,0.00031617,2]
[400709586,1767786645903,-508.0,0.00031667,4]
[400709588,1767786645912,-655.5,0.00031723,30]
[400709590,1767786645926,-517.11499075,0.00031849,2]
[400709592,1767786645937,-987.62624517,0.00031968,2]
[400709595,1767786645947,-601.0,0.000321,2]
[400709597,1767786645956,-978.0,0.000321,2]
[400709599,1767786645966,-1466.0463245,0.00032349,2]
[400709601,1767786645975,-10000.0,0.00032475,2]
[400709603,1767786645986,-785.08,0.000325,30]
[400709605,1767786645996,-508.0,0.00032562,5]
[400709607,1767786646006,-152.0,0.00032575,7]
[400709609,1767786646016,-152.0,0.00032575,7]
[400709611,1767786646026,-152.0,0.00032575,7]
[400709613,1767786646036,-152.0,0.00032575,7]
[400709615,1767786646046,-152.0,0.00032575,7]
[400709617,1767786646057,-152.0,0.00032575,7]
[400709619,1767786646067,-152.0,0.00032575,7]
[400709621,1767786646077,-152.0,0.00032575,7]
[400709623,1767786646087,-152.0,0.00032575,7]
[400709626,1767786646098,-152.0,0.00032575,7]
[400709628,1767786646108,-152.0,0.00032575,7]
[400709630,1767786646118,-152.0,0.00032575,7]
[400709632,1767786646128,-152.0,0.00032575,7]
[400709634,1767786646138,-152.0,0.00032575,7]
[400709636,1767786646148,-152.0,0.00032575,7]
[400709638,1767786646158,-152.0,0.00032575,7]
[400709640,1767786646168,-152.0,0.00032575,7]
[400709642,1767786646178,-150.0,0.00032706,2]
[400709644,1767786646191,-150.0,0.00032706,2]
[400709646,1767786646200,-200.0,0.00032706,2]
[400709648,1767786646210,-150.0,0.00032706,2]
[400709650,1767786646219,-150.0,0.00032706,2]
[400709652,1767786646230,-150.0,0.00032706,2]
[400709654,1767786646239,-210.242,0.00032706,2]
[400709656,1767786646248,-150.133,0.00032706,2]
[400709658,1767786646261,-150.0,0.00032706,2]
[400709660,1767786646270,-150.0,0.00032706,2]
[400709662,1767786646280,-190.899,0.00032706,2]
[400709664,1767786646289,-150.0,0.00032706,2]
[400709666,1767786646299,-250.0,0.00032706,2]
[400709668,1767786646309,-227.775,0.00032706,2]
[400709670,1767786646319,-168.0,0.00032706,2]
[400709672,1767786646328,-184.6862361,0.00032712,2]
[400709675,1767786646339,-3474.93900206,0.000328,2]
[400709677,1767786646348,-1225.48012765,0.0003287,2]
[400709679,1767786646358,-158.25601146,0.00032874,2]
[400709681,1767786646367,-5000.0,0.00032876,30]
[400709683,1767786646376,-187.27,0.00032877,2]
[400709685,1767786646386,-3382.25,0.00032877,120]
[400709687,1767786646395,-516.11,0.00032877,120]
[400709689,1767786646405,-500.0,0.00032877,7]
[400709691,1767786646416,-500.0,0.00032877,7]
[400709693,1767786646426,-500.0,0.00032877,7]
[400709695,1767786646435,-500.0,0.00032877,7]
[400709697,1767786646445,-500.0,0.00032877,7]
[400709699,1767786646455,-500.0,0.00032877,7]
[400709701,1767786646465,-414.70596334,0.00032877,7]
[400709703,1767786646475,-500.0,0.00032877,7]
[400709706,1767786646488,-500.0,0.00032877,7]
[400709708,1767786646497,-500.0,0.00032877,7]
[400709710,1767786646507,-500.0,0.00032877,7]
[400709712,1767786646517,-500.0,0.00032877,7]
[400709714,1767786646527,-398.86540225,0.00032892,2]
[400709716,1767786646537,-151.0,0.00032897,14]
[400709717,1767786646546,-154637.45677155,0.000329,30]
[400709718,1767786646556,-719.64937765,0.000329,120]
[400709719,1767786646565,-695.82,0.000329,14]
[400709720,1767786646574,-194.78763088,0.000329,120]
[400709721,1767786646584,-229.30479363,0.000329,120]
[400709722,1767786646593,-23882.22,0.000329,2]
[400709723,1767786646603,-516.11,0.00032905,120]
[400709724,1767786646612,-516.11,0.00032935,120]
[400709725,1767786646622,-1333.04,0.00032959,2]
[400709726,1767786646631,-516.11,0.00032966,120]
[400709727,1767786646640,-516.11,0.00032999,120]
[400709728,1767786646650,-37350.91240382,0.00033,2]
[400709729,1767786646659,-3603.13674807,0.00033,2]
[400709731,1767786646669,-168.0,0.00033,14]
[400709733,1767786646679,-516.11,0.00033034,120]
[400709735,1767786646689,-516.11,0.0003307,120]
[400709737,1767786646699,-516.11,0.0003311,120]
[400709739,1767786646708,-516.11,0.00033152,120]
[400709741,1767786646719,-516.11,0.00033197,120]
[400709743,1767786646728,-516.11,0.00033245,120]
[400709745,1767786646738,-295.94924026,0.00033258,120]
[400709747,1767786646747,-516.11,0.00033298,120]
[400709749,1767786646757,-516.11,0.00033356,120]
[400709751,1767786646767,-516.11,0.0003342,120]
[400709754,1767786646779,-508.0,0.00033457,6]
[400709756,1767786646789,-516.11,0.00033492,120]
[400709758,1767786646799,-23882.22,0.000335,2]
[400709760,1767786646809,-516.11,0.00033573,120]
[400709762,1767786646818,-159.38705849,0.00033593,2]
[400709764,1767786646828,-516.11,0.00033667,120]
[400709766,1767786646838,-152.0,0.00033667,3]
[400709768,1767786646848,-16961.71629951,0.00033673,2]
[400709770,1767786646860,-161.58,0.00033778,2]
[400709772,1767786646872,-3467.0,0.00033778,2]
[400709774,1767786646882,-619.404,0.00033778,2]
[400709776,1767786646892,-1330.0,0.00033778,2]
[400709778,1767786646902,-1405.0,0.00033778,2]
[400709780,1767786646913,-505.0,0.00033778,2]
[400709783,1767786646923,-1343.242,0.00033778,2]
[400709785,1767786646935,-1212.708,0.00033778,2]
[400709787,1767786646945,-250.0,0.00033778,2]
[400709789,1767786646954,-6551.0,0.00033778,2]
[400709791,1767786646964,-2436.0,0.00033778,2]
[400709793,1767786646973,-516.11,0.00033778,120]
[400709795,1767786646983,-695.82,0.000338,14]
[400709797,1767786646994,-172.37166358,0.00033845,2]
[400709799,1767786647004,-172.37166358,0.00033845,2]
[400709801,1767786647014,-236.86849515,0.00033863,11]
[400709803,1767786647024,-661.33,0.0003389,2]
[400709805,1767786647034,-482.63,0.0003389,2]
[400709807,1767786647044,-719.64937765,0.000339,120]
[400709809,1767786647053,-785.08,0.000339,30]
[400709811,1767786647063,-1032.51,0.000339,14]
[400709813,1767786647072,-482.63,0.00033907,2]
[400709815,1767786647083,-661.33,0.00033907,2]
[400709817,1767786647092,-482.63,0.00033907,2]
[400709819,1767786647102,-1322.66,0.00033907,2]
[400709821,1767786647111,-661.33,0.00033907,2]
[400709823,1767786647120,-482.63,0.00033907,2]
[400709825,1767786647130,-1318.94,0.00033907,2]
[400709827,1767786647139,-516.11,0.00033914,120]
[400709830,1767786647149,-500.0,0.00033939,60]
[400709832,1767786647158,-23882.22,0.000341,2]
[400709834,1767786647167,-1000.0,0.000341,7]
[400709836,1767786647177,-1000.0,0.000341,7]
[400709838,1767786647191,-3474.93900203,0.00034165,2]
[400709840,1767786647200,-292.06380778,0.00034203,2]
[400709842,1767786647209,-150.1,0.0003422,2]
[400709844,1767786647219,-150.1,0.0003422,2]
[400709846,1767786647230,-150.1,0.0003422,2]
[400709848,1767786647240,-163.90468149,0.0003422,2]
[400709850,1767786647253,-1000.0,0.000343,7]
[400709852,1767786647265,-152.0,0.00034328,4]
[400709855,1767786647276,-508.0,0.00034352,7]
[400709857,1767786647287,-150.0,0.00034466,2]
[400709859,1767786647298,-300.0,0.00034466,2]
[400709861,1767786647307,-346.67,0.00034466,2]
[400709863,1767786647317,-168.0,0.00034521,30]
[400709865,1767786647327,-695.82,0.000346,14]
[400709867,1767786647336,-167.39628109,0.00034809,2]
[400709869,1767786647345,-534.26163818,0.00034821,60]
[400709871,1767786647354,-719.64937765,0.000349,120]
[400709873,1767786647364,-785.08,0.000349,30]
[400709875,1767786647373,-3224.87,0.000349,2]
[400709877,1767786647383,-156.39785234,0.000349,120]
[400709879,1767786647392,-152.0,0.00034989,5]
[400709881,1767786647402,-3345.23933964,0.00035,30]
[400709883,1767786647411,-9314.04089791,0.00035,30]
[400709885,1767786647421,-1911.59418687,0.00035,2]
[400709887,1767786647430,-1139.78493099,0.00035,30]
[400709889,1767786647441,-826.66082295,0.00035,30]
[400709891,1767786647451,-181.63203589,0.00035,120]
[400709893,1767786647465,-23882.22,0.00035,2]
[400709895,1767786647475,-1000.0,0.00035,7]
[400709897,1767786647485,-1000.0,0.00035039,7]
[400709899,1767786647495,-517.11499075,0.00035053,2]
[400709902,1767786647505,-1455.6771505,0.000351,2]
[400709904,1767786647515,-2212.7452,0.0003522,30]
[400709906,1767786647525,-508.0,0.00035247,8]
[400709908,1767786647537,-2500.0,0.000353,14]
[400709910,1767786647547,-1000.0,0.000353,7]
[400709912,1767786647558,-695.82,0.000354,14]
[400709914,1767786647572,-177.3371946,0.0003542,30]
[400709917,1767786647583,-245.4,0.000355,13]
[400709919,1767786647593,-288.8,0.000355,13]
[400709921,1767786647604,-3224.87,0.000355,2]
[400709923,1767786647615,-1032.51,0.000355,14]
[400709925,1767786647624,-3474.93900203,0.0003553,2]
[400709927,1767786647635,-159.3870585,0.00035569,2]
[400709929,1767786647645,-1000.0,0.000356,7]
[400709931,1767786647657,-572.7,0.00035616,15]
[400709933,1767786647666,-739.5,0.00035616,48]
[400709935,1767786647677,-684.9,0.00035616,28]
[400709937,1767786647687,-156.69541014,0.00035616,111]
[400709939,1767786647697,-630.9,0.00035616,40]
[400709941,1767786647706,-542.7,0.00035616,50]
[400709943,1767786647715,-516.9,0.00035616,31]
[400709945,1767786647725,-647.7,0.00035616,48]
[400709947,1767786647735,-204.64,0.00035616,94]
[400709949,1767786647744,-749.1,0.00035616,27]
[400709951,1767786647754,-504.0,0.00035616,35]